fUST/lending_fUST_20260126
["ID","MTS","AMOUNT","RATE_DAILY","PERIOD"]
[403494558,1769357438520,-150.0,8.424e-05,2]
[403494559,1769357438531,-538.0,8.424e-05,2]
[403494560,1769357438542,-303.5632562,8.425e-05,2]
[403494561,1769357438552,-500.0,8.605e-05,2]
[403494562,1769357438562,-500.0,8.605e-05,2]
[403494563,1769357438572,-500.0,8.605e-05,2]
[403494564,1769357438582,-500.0,8.605e-05,2]
[403494565,1769357438592,-150.0,9.19e-05,2]
[403494566,1769357438602,-204.9788623,9.238e-05,2]
[403494567,1769357438612,-300.0,9.421e-05,2]
[403494568,1769357438622,-300.0,9.421e-05,2]
[403494569,1769357438632,-300.0,9.421e-05,2]
[403494570,1769357438642,-300.0,9.421e-05,2]
[403494571,1769357438652,-300.0,9.421e-05,2]
[403494572,1769357438662,-300.0,9.421e-05,2]
[403494573,1769357438673,-300.0,9.421e-05,2]
[403494574,1769357438683,-300.0,9.421e-05,2]
[403494575,1769357438693,-300.0,9.421e-05,2]
[403494577,1769357438703,-300.0,9.421e-05,2]
[403494579,1769357438715,-300.0,9.421e-05,2]
[403494581,1769357438725,-300.0,9.421e-05,2]
[403494583,1769357438735,-300.0,9.421e-05,2]
[403494585,1769357438745,-300.0,9.421e-05,2]
[403494587,1769357438756,-300.0,9.421e-05,2]
[403494589,1769357438766,-150.0,9.956e-05,2]
[403494591,1769357438776,-182.0,0.00010424,2]
[403494593,1769357438786,-300.0,0.00010424,2]
[403494595,1769357438796,-358.20464232,0.00010425,2]
[403494597,1769357438806,-18033.41029502,0.00010425,2]
[403494600,1769357438818,-600.0,0.00010632,2]
[403494602,1769357438829,-151.0,0.0001072,2]
[403494604,1769357438839,-186.72,0.00010722,2]
[403494606,1769357438849,-500.0,0.00010724,2]
[403494608,1769357438859,-500.0,0.00010724,2]
[403494610,1769357438868,-164.30443264,0.00010724,2]
[403494612,1769357438878,-510.77816102,0.00010724,2]
[403494614,1769357438888,-500.0,0.00010724,2]
[403494616,1769357438898,-500.0,0.00010724,2]
[403494618,1769357438908,-168.95114446,0.00010724,2]
[403494620,1769357438917,-216.66906866,0.00010724,2]
[403494622,1769357438927,-541.01005593,0.00010724,2]
[403494624,1769357438937,-607.98240303,0.00010724,2]
[403494626,1769357438946,-500.0,0.00010724,2]
[403494628,1769357438957,-500.0,0.00010724,2]
[403494630,1769357438969,-500.0,0.00010724,2]
[403494632,1769357438980,-500.0,0.00010724,2]
[403494634,1769357438992,-500.0,0.00010724,2]
[403494636,1769357439003,-500.0,0.00010724,2]
[403494638,1769357439013,-174.39151462,0.00010724,2]
[403494640,1769357439023,-500.0,0.00010724,2]
[403494642,1769357439034,-500.0,0.00010724,2]
[403494644,1769357439044,-500.0,0.00010724,2]
[403494646,1769357439054,-500.0,0.00010724,2]
[403494648,1769357439065,-500.0,0.00010724,2]
[403494650,1769357439075,-500.0,0.00010724,2]
[403494652,1769357439096,-500.0,0.00010724,2]
[403494654,1769357439106,-500.0,0.00010724,2]
[403494656,1769357439117,-43759.6866935,0.00010726,2]
[403494658,1769357439127,-420.0,0.00011461,2]
[403494660,1769357439137,-233.4,0.00011488,2]
[403494662,1769357439146,-720.0,0.00011696,2]
[403494664,1769357439156,-30000.0,0.00012199,2]
[403494666,1769357439166,-574.12855637,0.00012199,2]
[403494668,1769357439176,-2773.56790519,0.00012199,2]
[403494670,1769357439186,-209.40437684,0.00012199,2]
[403494672,1769357439197,-217.15233878,0.00012199,2]
[403494674,1769357439206,-225.18697532,0.00012199,2]
[403494676,1769357439219,-233.51889341,0.00012199,2]
[403494678,1769357439228,-242.15909246,0.00012199,2]
[403494680,1769357439237,-251.11897888,0.00012199,2]
[403494682,1769357439247,-260.4103811,0.00012199,2]
[403494684,1769357439257,-270.0455652,0.00012199,2]
[403494686,1769357439267,-280.03725112,0.00012199,2]
[403494688,1769357439276,-290.39862941,0.00012199,2]
[403494690,1769357439287,-301.1433787,0.00012199,2]
[403494692,1769357439296,-280.08,0.00012254,2]
[403494694,1769357439306,-521.22117397,0.00012305,2]
[403494696,1769357439316,-1479.4563504,0.00012306,2]
[403494699,1769357439326,-3491.9632962,0.00012306,2]
[403494702,1769357439336,-6898.2305093,0.00012306,2]
[403494704,1769357439346,-412.84602843,0.00012425,2]
[403494706,1769357439356,-587.0,0.00012602,2]
[403494709,1769357439365,-153.7179938,0.00012652,2]
[403494713,1769357439375,-31110.0,0.00012747,2]
[403494715,1769357439386,-639.68274461,0.00012747,2]
[403494717,1769357439396,-2876.18991768,0.00012747,2]
[403494719,1769357439406,-874.455763,0.00012747,2]
[403494721,1769357439416,-874.455763,0.00012747,2]
[403494723,1769357439426,-874.455763,0.00012747,2]
[403494725,1769357439444,-874.455763,0.00012747,2]
[403494726,1769357439454,-291.28266323,0.00012808,7]
[403494729,1769357439464,-864.0,0.00012865,2]
[403494730,1769357439474,-9624.60993405,0.000129,2]
[403494733,1769357439483,-9624.60993399,0.000129,2]
[403494734,1769357439493,-1055.74425763,0.00012903,2]
[403494736,1769357439502,-194.5963318,0.00012986,2]
[403494738,1769357439511,-194.5963318,0.00012986,2]
[403494741,1769357439528,-151.0,0.00013,2]
[403494744,1769357439540,-874.455763,0.00013003,2]
[403494747,1769357439551,-874.455763,0.00013003,2]
[403494749,1769357439562,-874.455763,0.00013003,2]
[403494750,1769357439572,-874.455763,0.00013003,2]
[403494753,1769357439582,-306235.62580214,0.00013003,2]
[403494757,1769357439613,-37527.81280858,0.00013003,2]
[403494760,1769357439627,-9639.96851735,0.00013003,2]
[403494763,1769357439642,-8138.38366462,0.00013003,2]
[403494765,1769357439657,-386.60472208,0.00013003,2]
[403495403,1769357446186,-18818.12830316,0.00013003,2]
[403495405,1769357446282,-3523.85946252,0.00013003,2]
[403495406,1769357446294,-1725.3782,0.00013003,2]
[403495407,1769357446306,-344.06246631,0.00013003,2]
[403495420,1769357446543,-2674.60743027,0.00013003,2]
[403495435,1769357446706,-28018.21198261,0.00013003,2]
[403495437,1769357446719,-9377.06113134,0.00013003,2]
[403495500,1769357543486,0.01,6.639e-05,2]
[403495501,1769357543508,768.98873,6.639e-05,2]
[403495525,1769358632039,-5000.0,7.704e-05,2]
[403495526,1769358632050,-528.0,7.704e-05,2]
[403495527,1769358632060,-288.61097766,7.861e-05,2]
[403495528,1769358632069,-300.0,8.097e-05,2]
[403495529,1769358632080,-960.0,8.097e-05,2]
[403495530,1769358632090,-300.0,8.098e-05,2]
[403495531,1769358632099,-300.0,8.098e-05,2]
[403495532,1769358632112,-300.0,8.098e-05,2]
[403495533,1769358632122,-300.0,8.098e-05,2]
[403495534,1769358632132,-300.0,8.098e-05,2]
[403495535,1769358632142,-300.0,8.098e-05,2]
[403495536,1769358632151,-300.0,8.098e-05,2]
[403495537,1769358632161,-300.0,8.098e-05,2]
[403495539,1769358632170,-300.0,8.098e-05,2]
[403495541,1769358632180,-300.0,8.098e-05,2]
[403495543,1769358632190,-300.0,8.098e-05,2]
[403495545,1769358632200,-300.0,8.098e-05,2]
[403495547,1769358632209,-300.0,8.098e-05,2]
[403495549,1769358632218,-300.0,8.098e-05,2]
[403495551,1769358632228,-300.0,8.098e-05,2]
[403495553,1769358632238,-420.0,8.907e-05,2]
[403495555,1769358632247,-150.0,9.637e-05,2]
[403495557,1769358632256,-587.0,9.797e-05,2]
[403495560,1769358632265,-340.56095364,9.861e-05,2]
[403495562,1769358632275,-150.0,0.00010513,2]
[403495564,1769358632284,-182.0,0.00010777,2]
[403495566,1769358632298,-690.66992011,0.00010811,2]
[403495568,1769358632307,-1078.09257841,0.00010811,2]
[403495570,1769358632317,-327.55242784,0.0001138,2]
[403495572,1769358632326,-582.31542727,0.0001138,2]
[403495574,1769358632337,-908.95798725,0.0001138,2]
[403495576,1769358632346,-150.0,0.00011389,2]
[403495578,1769358632355,-1957.5946098,0.00011667,2]
[403495580,1769358632366,-392.51092962,0.00011861,2]
[403495582,1769358632375,-363.48375332,0.00011979,2]
[403495584,1769358632385,-165.23,0.00012265,2]
[403495586,1769358632394,-150.0,0.00012455,2]
[403495588,1769358632404,-150.0,0.00012455,2]
[403495589,1769358632413,-500.0,0.00012504,2]
[403495590,1769358632424,-150.0,0.00012504,2]
[403495591,1769358632434,-285.8854451,0.00012552,2]
[403495592,1769358632444,-194.5963318,0.000126,2]
[403495593,1769358632453,-153.0,0.000126,2]
[403495594,1769358632465,-153.0,0.000126,2]
[403495595,1769358632475,-500.0,0.00012641,2]
[403495596,1769358632485,-196.4238846,0.00012678,2]
[403495597,1769358632494,-150.0,0.00012729,2]
[403495598,1769358632504,-150.0,0.00012729,2]
[403495599,1769358632514,-150.0,0.00012729,2]
[403495600,1769358632523,-150.0,0.00012729,2]
[403495601,1769358632533,-150.00126694,0.00012729,2]
[403495602,1769358632543,-150.0,0.00012729,2]
[403495603,1769358632553,-150.0,0.00012729,2]
[403495604,1769358632563,-150.0,0.00012729,2]
[403495605,1769358632572,-150.0,0.00012729,2]
[403495606,1769358632582,-150.0,0.00012729,2]
[403495607,1769358632592,-150.0,0.00012729,2]
[403495608,1769358632601,-150.0,0.00012729,2]
[403495609,1769358632612,-500.0,0.00012778,2]
[403495610,1769358632621,-569.991,0.00012778,2]
[403495611,1769358632631,-234.3515731,0.00012778,2]
[403495612,1769358632640,-337.89000621,0.00012778,2]
[403495613,1769358632650,-175.7611693,0.00012778,2]
[403495614,1769358632659,-186.04350162,0.00012778,2]
[403495615,1769358632668,-567.55360034,0.00012778,2]
[403495616,1769358632678,-600.0,0.00012861,2]
[403495617,1769358632688,-150.0,0.00012866,2]
[403495618,1769358632698,-150.0,0.00012866,2]
[403495619,1769358632708,-150.0,0.00012866,2]
[403495620,1769358632717,-150.0,0.00012866,2]
[403495621,1769358632727,-150.0,0.00012866,2]
[403495622,1769358632737,-150.0,0.00012866,2]
[403495623,1769358632747,-150.0,0.00012866,2]
[403495624,1769358632756,-150.0,0.00012866,2]
[403495625,1769358632765,-150.0,0.00012866,2]
[403495626,1769358632775,-150.0,0.00012866,2]
[403495627,1769358632786,-194.5963318,0.000129,2]
[403495628,1769358632795,-844.59540608,0.000129,2]
[403495629,1769358632804,-484.79697347,0.00012902,2]
[403495630,1769358632814,-486.51595678,0.00012903,2]
[403495631,1769358633024,-439.64,0.00012903,2]
[403495632,1769358633036,-288.63,0.00012903,2]
[403495689,1769358638587,-21004.84216345,0.00012903,2]
[403495691,1769358638599,-5055.8538328,0.00012903,2]
[403495696,1769358638631,-4182.74695527,0.00012903,2]
[403495698,1769358638645,-109769.16230956,0.00012903,2]
[403495700,1769358638660,-3717.04717806,0.00012903,2]
[403495702,1769358638671,-130785.04549022,0.00012903,2]
[403495704,1769358638682,-500.0,0.00012915,2]
[403495706,1769358638692,-11388.2250148,0.00012956,2]
[403495708,1769358638702,-24487.5163272,0.00012956,2]
[403495710,1769358638712,-2014.3732841,0.00012956,2]
[403495713,1769358638724,-645.4589124,0.00012956,2]
[403495714,1769358638733,-500.0,0.00012958,2]
[403495716,1769358638743,-500.0,0.00012958,2]
[403495718,1769358638752,-500.0,0.00012958,2]
[403495720,1769358638762,-500.0,0.00012958,2]
[403495722,1769358638772,-500.0,0.00012958,2]
[403495724,1769358638781,-209.40437684,0.00012958,2]
[403495726,1769358638790,-500.0,0.00012958,2]
[403495727,1769358638799,-217.15233878,0.00012958,2]
[403495729,1769358638809,-30000.0,0.00012958,2]
[403495731,1769358638819,-500.0,0.00012958,2]
[403495733,1769358638828,-225.18697532,0.00012958,2]
[403495735,1769358638838,-604.28,0.00012958,2]
[403495737,1769358638849,-233.51889341,0.00012958,2]
[403495739,1769358638859,-242.15909246,0.00012958,2]
[403495741,1769358638868,-251.11897888,0.00012958,2]
[403495743,1769358638878,-260.4103811,0.00012958,2]
[403495745,1769358638888,-270.0455652,0.00012958,2]
[403495746,1769358638898,-280.03725112,0.00012958,2]
[403495748,1769358638907,-290.39862941,0.00012958,2]
[403495750,1769358638919,-301.1433787,0.00012958,2]
[403495751,1769358638940,-2773.56790519,0.00012958,2]
[403495752,1769358638952,-151.0,0.00012958,2]
[403495753,1769358638963,-156.64558,0.00012958,2]
[403495754,1769358638972,-405849.97485748,0.00013,2]
[403495755,1769358638985,-810.13659507,0.00013,2]
[403495756,1769358638998,-424.50976335,0.00013,2]
[403495819,1769358640718,-288.61097766,9.272e-05,2]
[403495820,1769358640730,-340.56095364,0.00011272,2]
[403495822,1769358640741,-3670.6270687,0.00013,2]
[403496405,1769358646261,-25557.61541044,0.00013,2]
[403496418,1769358646390,-2634.0,0.00013,2]
[403496431,1769358646505,-27488.96337604,0.00013,2]
[403496433,1769358646517,-8839.75889643,0.00013,2]
[403496435,1769358646529,-10688.64487836,0.00013,2]
[403496892,1769359739448,-3061.89696782,7.939e-05,2]
[403496893,1769359739468,-270.65058547,8.08e-05,2]
[403496894,1769359739486,-535.0,8.182e-05,2]
[403496895,1769359739507,-150.0,8.286e-05,2]
[403496896,1769359750120,-150.0,9.131e-05,2]
[403496897,1769359750141,-150.0,9.793e-05,2]
[403496898,1769359760340,-319.36769086,0.0001008,2]
[403496899,1769359768515,-196.74,0.00010653,2]
[403496900,1769359768534,-300.0,0.00010796,2]
[403496989,1769359838244,-150.0,7.729e-05,2]
[403496991,1769359838255,-529.0,7.729e-05,2]
[403496993,1769359838266,-150.0,8.432e-05,2]
[403496995,1769359838275,-150.0,9.134e-05,2]
[403496997,1769359838286,-6.65276141,9.837e-05,2]
[403496999,1769359838298,-157.16723859,9.837e-05,2]
[403497001,1769359838308,-144.83276141,0.0001054,2]
[403497002,1769359838333,-59.93723859,0.0001054,2]
[403497003,1769359838344,-245.73,0.00011242,2]
[403497004,1769359838354,-270.60681539,0.00011695,2]
[403497005,1769359838364,-309.26493187,0.00011695,2]
[403497006,1769359838374,-482.74322959,0.00011695,2]
[403497007,1769359838383,-286.68,0.00011945,2]
[403497008,1769359838391,-308.38312359,0.00011979,2]
[403497009,1769359838399,-313.79566193,0.00011979,2]
[403497010,1769359838407,-368.08479624,0.0001208,2]
[403497011,1769359838416,-184.70210883,0.00012278,2]
[403497012,1769359838428,-9.89422297,0.00012278,2]
[403497013,1769359838439,-194.5963318,0.000123,2]
[403497014,1769359838448,-1200.0,0.00012377,2]
[403497015,1769359838458,-541.8835147,0.00012378,2]
[403497017,1769359838468,-300.0,0.00012383,2]
[403497019,1769359838478,-203.27234456,0.00012383,2]
[403497021,1769359838491,-96.72765544,0.00012383,2]
[403497022,1769359838501,-194.5963318,0.00012384,2]
[403497024,1769359838512,-185.07126073,0.00012384,2]
[403497025,1769359838527,-9.52507107,0.00012384,2]
[403497026,1769359838536,-194.5963318,0.00012384,2]
[403497027,1769359838546,-194.5963318,0.000124,2]
[403497028,1769359838555,-194.5963318,0.00012456,2]
[403497029,1769359838565,-112.17985543,0.000125,2]
[403497041,1769359839995,-82.41647637,0.000125,2]
[403497043,1769359840005,-327.64,0.00012648,2]
[403497044,1769359840015,-194.5963318,0.000127,2]
[403497046,1769359840025,-73.43066135,0.00012718,2]
[403497054,1769359840100,-426.56933865,0.00012718,2]
[403497056,1769359840110,-150.0,0.00012718,2]
[403497058,1769359840120,-200.0,0.00012726,2]
[403497060,1769359840130,-150.0,0.00012726,2]
[403497063,1769359840140,-150.53438118,0.00012726,2]
[403497066,1769359840149,-150.0,0.00012726,2]
[403497069,1769359840159,-150.0,0.00012726,2]
[403497072,1769359840170,-150.0,0.00012726,2]
[403497075,1769359840180,-219.13271269,0.0001275,2]
[403497080,1769359840192,-522.11007905,0.0001275,2]
[403497083,1769359840204,-6858.40760016,0.0001275,2]
[403497086,1769359840215,-574.12855637,0.0001275,2]
[403497089,1769359840224,-209.40437684,0.0001275,2]
[403497092,1769359840234,-217.15233878,0.0001275,2]
[403497094,1769359840243,-225.18697532,0.0001275,2]
[403497096,1769359840252,-233.51889341,0.0001275,2]
[403497098,1769359840262,-2773.56790519,0.0001275,2]
[403497099,1769359840271,-242.15909246,0.0001275,2]
[403497101,1769359840281,-251.11897888,0.0001275,2]
[403497103,1769359840290,-260.4103811,0.0001275,2]
[403497105,1769359840300,-270.0455652,0.0001275,2]
[403497107,1769359840310,-280.03725112,0.0001275,2]
[403497109,1769359840319,-290.39862941,0.0001275,2]
[403497111,1769359840330,-301.1433787,0.0001275,2]
[403497114,1769359840340,-194.5963318,0.000128,2]
[403497115,1769359840350,-500.0,0.00012855,2]
[403497117,1769359840360,-150.0,0.00012855,2]
[403497119,1769359840369,-150.0,0.00012863,2]
[403497121,1769359840379,-390.57349103,0.00012886,2]
[403497123,1769359840389,-339.35788142,0.00012896,2]
[403497125,1769359840399,-2854.31980277,0.00012897,2]
[403497130,1769359840428,-63380.92315759,0.00012897,2]
[403497134,1769359840439,-104215.73355833,0.00012897,2]
[403497137,1769359840449,-194.5963318,0.000129,2]
[403497140,1769359840458,-194.5963318,0.000129,2]
[403497143,1769359840467,-337.03645461,0.00012958,2]
[403497146,1769359840476,-204.77167476,0.00012958,2]
[403497150,1769359840486,-3108.0428088,0.00012962,2]
[403497152,1769359840495,-1994.8741474,0.00012962,2]
[403497154,1769359840505,-500.0,0.00012992,2]
[403497156,1769359840514,-172.71,0.00012992,2]
[403497158,1769359840524,-137737.22645413,0.00013,2]
[403497160,1769359840534,-151.0,0.00013,2]
[403497162,1769359840543,-151.0,0.00013,2]
[403497163,1769359840552,-151.0,0.00013,2]
[403497165,1769359840562,-151.0,0.00013,2]
[403497167,1769359840571,-194.5963318,0.00013,2]
[403497169,1769359840581,-2346.81258079,0.00013,2]
[403497171,1769359840591,-1000.0,0.00013,2]
[403497173,1769359840600,-1000.0,0.00013,2]
[403497175,1769359840609,-1005.16201147,0.00013,2]
[403497177,1769359840619,-178.49541537,0.00013,2]
[403497179,1769359840628,-151.0,0.00013,2]
[403497181,1769359840641,-151.0,0.00013,2]
[403497183,1769359840650,-151.0,0.00013,2]
[403497185,1769359840660,-151.0,0.00013,2]
[403497187,1769359840669,-151.0,0.00013,2]
[403497189,1769359840679,-151.0,0.00013,2]
[403497191,1769359840688,-156.24047213,0.00013,2]
[403497193,1769359840698,-368.22042555,0.00013027,2]
[403497195,1769359840709,-342.78001787,0.00013027,2]
[403497197,1769359840719,-151.0,0.000131,2]
[403497199,1769359840729,-500.0,0.00013129,2]
[403497201,1769359840739,-194.5963318,0.000132,2]
[403497203,1769359840749,-151.0,0.000132,2]
[403497205,1769359840758,-151.0,0.000132,2]
[403497207,1769359840767,-194.5963318,0.00013205,2]
[403497209,1769359840777,-194.5963318,0.00013205,2]
[403497211,1769359840786,-194.5963318,0.00013205,2]
[403497213,1769359840797,-300.0,0.00013259,2]
[403497215,1769359840806,-300.0,0.00013259,2]
[403497217,1769359840816,-300.0,0.00013259,2]
[403497219,1769359840826,-300.0,0.00013259,2]
[403497221,1769359840835,-300.0,0.00013259,2]
[403497222,1769359840844,-300.0,0.00013259,2]
[403497224,1769359840853,-300.0,0.00013259,2]
[403497226,1769359840863,-300.0,0.00013259,2]
[403497229,1769359840874,-300.0,0.00013259,2]
[403497230,1769359840883,-300.0,0.00013259,2]
[403497233,1769359840894,-300.0,0.00013259,2]
[403497235,1769359840903,-300.0,0.00013259,2]
[403497236,1769359840912,-300.0,0.00013259,2]
[403497239,1769359840923,-300.0,0.00013259,2]
[403497241,1769359840932,-300.0,0.00013259,2]
[403497242,1769359840942,-600.0,0.00013259,2]
[403497244,1769359840952,-500.0,0.00013266,2]
[403497246,1769359840961,-500.0,0.00013273,2]
[403497248,1769359840970,-500.0,0.00013273,2]
[403497250,1769359840980,-500.0,0.00013273,2]
[403497252,1769359840990,-500.0,0.00013273,2]
[403497254,1769359840999,-500.0,0.00013273,2]
[403497256,1769359841008,-500.0,0.00013273,2]
[403497258,1769359841018,-500.0,0.00013273,2]
[403497260,1769359841027,-500.0,0.00013273,2]
[403497262,1769359841038,-500.0,0.00013273,2]
[403497263,1769359841046,-500.0,0.00013273,2]
[403497265,1769359841056,-500.0,0.00013273,2]
[403497267,1769359841066,-500.0,0.00013273,2]
[403497269,1769359841077,-500.0,0.00013273,2]
[403497271,1769359841087,-500.0,0.00013273,2]
[403497273,1769359841096,-500.0,0.00013273,2]
[403497275,1769359841106,-500.0,0.00013273,2]
[403497277,1769359841116,-158.13770808,0.00013273,2]
[403497279,1769359841125,-500.0,0.00013273,2]
[403497281,1769359841135,-500.0,0.00013273,2]
[403497283,1769359841145,-500.0,0.00013273,2]
[403497285,1769359841155,-500.0,0.00013273,2]
[403497287,1769359841164,-500.0,0.00013273,2]
[403497289,1769359841174,-205.09849573,0.00013273,2]
[403497291,1769359841183,-648.71726301,0.00013273,2]
[403497293,1769359841192,-500.0,0.00013273,2]
[403497295,1769359841202,-500.0,0.00013273,2]
[403497297,1769359841211,-500.0,0.00013273,2]
[403497299,1769359841220,-500.0,0.00013273,2]
[403497301,1769359841230,-503.70808855,0.00013273,2]
[403497303,1769359841240,-500.0,0.00013273,2]
[403497305,1769359841249,-500.0,0.00013273,2]
[403497307,1769359841258,-500.0,0.00013273,2]
[403497309,1769359841268,-500.0,0.00013273,2]
[403497311,1769359841277,-500.0,0.00013273,2]
[403497313,1769359841286,-500.0,0.00013273,2]
[403497315,1769359841296,-500.0,0.00013273,2]
[403497317,1769359841305,-500.0,0.00013273,2]
[403497319,1769359841314,-500.0,0.00013273,2]
[403497321,1769359841324,-500.0,0.00013273,2]
[403497323,1769359841334,-500.0,0.00013273,2]
[403497325,1769359841343,-500.0,0.00013273,2]
[403497327,1769359841351,-500.0,0.00013273,2]
[403497329,1769359841361,-500.0,0.00013273,2]
[403497330,1769359841370,-500.0,0.00013273,2]
[403497332,1769359841378,-500.0,0.00013273,2]
[403497334,1769359841388,-238.65486629,0.00013273,2]
[403497336,1769359841397,-326.56437983,0.00013273,2]
[403497338,1769359841407,-500.0,0.00013273,2]
[403497340,1769359841416,-500.0,0.00013273,2]
[403497342,1769359841425,-577.15955293,0.00013298,2]
[403497344,1769359841435,-2876.18991768,0.00013298,2]
[403497346,1769359841444,-1712.0,0.00013299,2]
[403497348,1769359841453,-151.0,0.000133,2]
[403497350,1769359841462,-5888.0,0.00013332,2]
[403497352,1769359841471,-1712.0,0.00013333,2]
[403497354,1769359841480,-187.5241575,0.00013342,2]
[403497356,1769359841490,-368.59,0.0001335,2]
[403497358,1769359841499,-389.1926636,0.00013378,2]
[403497360,1769359841509,-151.0,0.000134,2]
[403497362,1769359841518,-151.0,0.000134,2]
[403497364,1769359841527,-151.0,0.000134,2]
[403497366,1769359841538,-1054.44531604,0.000134,2]
[403497368,1769359841546,-500.0,0.00013403,2]
[403497370,1769359841557,-922.0,0.00013423,2]
[403497372,1769359841566,-839749.56185603,0.000135,2]
[403497563,1769359843499,-9909.78073313,0.000135,2]
[403497565,1769359843511,-1650.71559576,0.000135,2]
[403497567,1769359843522,-7522.27726781,0.000135,2]
[403497569,1769359843534,-2000.0,0.000135,2]
[403497571,1769359843545,-792.31526139,0.000135,2]
[403497866,1769359846335,-370.88638246,0.000135,2]
[403497868,1769359846347,-1893.28054136,0.000135,2]
[403497871,1769359846358,-496.36917147,0.000135,2]
[403497875,1769359846388,-652.0,0.000135,2]
[403498476,1769360421644,-150.0,8.139e-05,2]
[403498477,1769360421664,-150.0,8.139e-05,2]
[403498478,1769360421679,-142.34042187,8.139e-05,2]
[403498479,1769360654160,-241.65957813,8.139e-05,2]
[403498480,1769360654181,-259.98867564,8.22e-05,2]
[403498481,1769360654202,-498.35174623,8.3e-05,2]
[403498482,1769360656492,-12.04825377,8.3e-05,2]
[403498483,1769360656514,-150.0,9.097e-05,2]
[403498484,1769360656533,-150.0,9.75e-05,2]
[403498485,1769360656553,-306.78663726,0.00010219,2]
[403498486,1769360656573,-150.0,0.00010659,2]
[403498487,1769360656614,-150.0,0.00011479,2]
[403498488,1769360656633,-81.16510897,0.00011997,2]
[403498489,1769360656826,-130.71641282,0.00011997,2]
[403498490,1769360661582,150.0,9.063e-05,2]
[403498491,1769360661994,150.0,9.887e-05,2]
[403498492,1769360662406,150.0,0.00010711,2]
[403498493,1769360662811,150.0,0.00011535,2]
[403498494,1769360860505,-244.05,9e-05,2]
[403498495,1769360860526,-150.0,9.016e-05,2]
[403498496,1769360860546,-150.0,9.835e-05,2]
[403498497,1769360860566,-150.0,0.00010761,2]
[403498511,1769361032169,-248.65316938,0.0001236,2]
[403498512,1769361032178,-595.0,0.0001236,2]
[403498513,1769361032188,-125.25967815,0.000125,2]
[403498628,1769361038375,-26.96987116,0.000125,2]
[403498629,1769361038386,-500.0,0.00012918,2]
[403498630,1769361038397,-153.0,0.00013019,2]
[403498631,1769361038407,-1449.15302636,0.000131,2]
[403498632,1769361038606,-410.19,0.000131,2]
[403498633,1769361038618,-560.72908439,0.000131,2]
[403498634,1769361038629,-1982.72404432,0.000131,2]
[403498635,1769361038644,-9770.28033603,0.000131,2]
[403498636,1769361038656,-28358.4612077,0.000131,2]
[403498682,1769361040537,-87984.54466017,0.000131,2]
[403498711,1769361040797,-475.27547983,0.000131,2]
[403498992,1769361043562,-46165.89515396,0.000131,2]
[403498994,1769361043573,-1172.50797802,0.000131,2]
[403498996,1769361043585,-500.16552,0.000131,2]
[403498999,1769361043596,-5536.07189028,0.000131,2]
[403499001,1769361043607,-3700.00000083,0.000131,2]
[403499003,1769361043618,-382.71030593,0.000131,2]
[403499339,1769361046648,-477.04525857,0.000131,2]
[403501107,1769362232379,-247.82738425,8.986e-05,2]
[403501109,1769362232389,-546.0,8.986e-05,2]
[403501111,1769362232397,-150.0,9.376e-05,2]
[403501112,1769362232406,-150.0,0.00010271,2]
[403501114,1769362232416,-159.62665952,0.00010629,2]
[403501115,1769362232425,-162.23044371,0.00010629,2]
[403501116,1769362232434,-80.23720557,0.00010986,2]
[403501118,1769362232445,-212.19910785,0.00010986,2]
[403501119,1769362232454,-150.0,0.00011127,2]
[403501120,1769362232463,-337.20594002,0.00011979,2]